bitfinex/quotes_BTCUSD_20250618
["timestamp","ask_amount","ask_price","bid_price","bid_amount"]
[1750256829651,0.04089282,105440.0,105430.0,0.55921793]
[1750256829867,0.05985968,105440.0,105430.0,0.54487912]
[1750256830092,0.06934329,105440.0,105430.0,0.54583912]
[1750256830303,0.2685085,105440.0,105430.0,0.52687046]
[1750256830516,0.51059247,105440.0,105430.0,0.53635497]
[1750256830726,0.51059229,105440.0,105430.0,0.53535497]
[1750256830935,0.30110958,105440.0,105430.0,0.53435479]
[1750256831149,0.20866861,105430.0,105420.0,0.18971732]
[1750256831365,0.24613235,105430.0,105420.0,0.54386108]
[1750256831573,0.265102,105430.0,105420.0,0.54386108]
[1750256831819,0.25480213,105430.0,105420.0,0.32390108]
[1750256832016,0.46593302,105430.0,105420.0,0.19920318]
[1750256832224,0.29723302,105430.0,105420.0,0.36964318]
[1750256832442,0.20868814,105420.0,105410.0,0.25822802]
[1750256832686,0.02716414,105420.0,105410.0,0.54388258]
[1750256832924,0.22315318,105430.0,105420.0,0.20868859]
[1750256833143,0.44083372,105430.0,105420.0,0.20868877]
[1750256833348,0.45476434,105430.0,105420.0,0.36964318]
[1750256833562,0.01897118,105420.0,105410.0,0.35446924]
[1750256833780,0.2263685,105420.0,105410.0,0.19922207]
[1750256833988,0.2889685,105420.0,105410.0,0.20870874]
[1750256834235,0.01897262,105410.0,105400.0,0.25823211]
[1750256834450,0.21819505,105410.0,105400.0,0.34498675]
[1750256834665,0.22716622,105410.0,105400.0,0.53436108]
[1750256834866,0.24536037,105410.0,105400.0,0.53436108]
[1750256835077,0.23716704,105410.0,105400.0,0.53436108]
[1750256835297,0.0556783,105410.0,105400.0,0.53436108]
[1750256835520,0.23592766,105410.0,105400.0,0.22092]
[1750256835732,0.26692766,105410.0,105400.0,0.4201608]
[1750256835953,0.4723082,105410.0,105400.0,0.04952]
[1750256836180,0.49003823,105410.0,105400.0,0.21992]
[1750256836390,0.49003823,105410.0,105400.0,0.04952]
[1750256836391,0.31273657,105410.0,105400.0,0.04952]
[1750256837093,0.20872819,105400.0,105390.0,0.65654835]
[1750256837307,0.20872819,105400.0,105390.0,0.48614835]
[1750256837515,0.01897442,105400.0,105390.0,0.68501205]
[1750256837732,0.03794884,105400.0,105390.0,0.78125381]
[1750256837970,0.22770216,105400.0,105390.0,0.58238993]
[1750256838212,0.40872819,105400.0,105390.0,0.64705979]
[1750256838419,0.40886923,105400.0,105390.0,0.65654799]
[1750256838625,0.40886923,105400.0,105390.0,0.65654808]
[1750256838843,0.41835689,105400.0,105390.0,0.64705979]
[1750256839052,0.4088695,105400.0,105390.0,0.63757132]
[1750256839260,0.4088695,105400.0,105390.0,0.64705988]
[1750256839882,0.39938202,105400.0,105390.0,0.2774]
[1750256840102,0.43008202,105400.0,105390.0,0.04952]
[1750256840305,4.51227302,105400.0,105390.0,0.04952]
[1750256840539,4.53494623,105400.0,105390.0,0.04952]
[1750256840780,4.57367828,105400.0,105390.0,0.04952]
[1750256840975,0.00014104,105400.0,105390.0,0.26775592]
[1750256841207,0.00014104,105400.0,105390.0,0.44024988]
[1750256841658,0.00014104,105400.0,105390.0,0.45479073]
[1750256841911,0.00014104,105400.0,105390.0,0.51639073]
[1750256842831,0.00014104,105400.0,105390.0,0.36399768]
[1750256844144,0.00014104,105400.0,105390.0,0.42829768]
[1750256844622,0.00014104,105400.0,105390.0,0.39629768]
[1750256845696,0.00014104,105400.0,105390.0,0.42829768]
[1750256846852,0.00014104,105400.0,105390.0,0.44283853]
[1750256847530,0.00014104,105400.0,105390.0,0.51909073]
[1750256848720,0.00014104,105400.0,105390.0,0.61291853]
[1750256848945,0.00014104,105400.0,105390.0,0.39331853]
[1750256849165,0.00014104,105400.0,105390.0,0.36379768]
[1750256849393,0.42189436,105400.0,105390.0,0.09624176]
[1750256849616,0.21823601,105390.0,105380.0,0.42836789]
[1750256849840,0.21823601,105390.0,105380.0,0.52460974]
[1750256849841,0.23795289,105390.0,105380.0,0.52460974]
[1750256850062,0.22846442,105390.0,105380.0,0.53409875]
[1750256850284,0.23795289,105390.0,105380.0,0.54358767]
[1750256850493,0.24149825,105390.0,105380.0,0.53409875]
[1750256850711,0.40874835,105390.0,105380.0,0.52460974]
[1750256850929,0.41823664,105390.0,105380.0,0.53409884]
[1750256851143,0.41823664,105390.0,105380.0,0.52460974]
[1750256851370,0.40874835,105390.0,105380.0,0.34484055]
[1750256851594,0.40874835,105390.0,105380.0,0.52460983]
[1750256851813,0.39925988,105390.0,105380.0,0.51512055]
[1750256852056,0.39925988,105390.0,105380.0,0.53409902]
[1750256852283,0.39925988,105390.0,105380.0,0.55307695]
[1750256852498,0.41823601,105390.0,105380.0,0.54358749]
[1750256852711,0.42772448,105390.0,105380.0,0.52460956]
[1750256852939,0.42772448,105390.0,105380.0,0.53409848]
[1750256853174,0.42772448,105390.0,105380.0,0.09624176]
[1750256853423,0.44036807,105380.0,105370.0,0.23912734]
[1750256853702,4.38700907,105380.0,105370.0,0.04932]
[1750256855273,4.38900907,105380.0,105370.0,0.05881036]
[1750256855495,4.38700907,105380.0,105370.0,0.04932]
[1750256855720,4.35530907,105380.0,105370.0,0.04932]
[1750256855963,4.35930907,105380.0,105370.0,0.04932]
[1750256856209,0.44436807,105380.0,105370.0,0.25810779]
[1750256856439,0.22597784,105380.0,105370.0,0.28657743]
[1750256856659,0.03546658,105380.0,105370.0,0.28657743]
[1750256857304,0.24495586,105380.0,105370.0,0.28657743]
[1750256857534,0.44423465,105380.0,105370.0,0.2770877]
[1750256857753,0.2182768,105370.0,105360.0,0.25822538]
[1750256857979,0.44967815,105370.0,105360.0,0.41897662]
[1750256858205,0.47308797,105370.0,105360.0,0.40948536]
[1750256858447,4.38802897,105370.0,105360.0,0.21962]
[1750256858906,4.39002897,105370.0,105360.0,0.21962]
[1750256859163,4.39002897,105370.0,105360.0,0.0001]
[1750256859401,4.65647073,105370.0,105360.0,0.0001]
[1750256859643,4.65847073,105370.0,105360.0,0.0001]
[1750256859881,0.20882706,105350.0,105340.0,0.0001]
[1750256860172,4.38506806,105350.0,105340.0,0.1899614]
[1750256860396,4.38506806,105350.0,105340.0,0.20894725]
[1750256860615,4.38506806,105350.0,105340.0,0.0001]
[1750256860820,4.41413636,105350.0,105340.0,0.0001]
[1750256861259,4.41413636,105350.0,105340.0,0.00057041]
[1750256861501,4.41413636,105350.0,105340.0,0.19043181]
[1750256861731,4.41413636,105350.0,105340.0,0.19992478]
[1750256861948,4.40464465,105350.0,105340.0,0.00057041]
[1750256862173,4.40564465,105350.0,105340.0,0.19992488]
[1750256862388,4.40564465,105350.0,105340.0,0.20941785]
[1750256862614,4.15450101,105350.0,105340.0,0.22840298]
[1750256862831,4.15450101,105350.0,105340.0,0.23789568]
[1750256862832,4.18297641,105350.0,105340.0,0.23789568]
[1750256863045,4.18297641,105350.0,105340.0,0.22840261]
[1750256863255,4.1450093,105350.0,105340.0,0.22840252]
[1750256863506,0.001,105350.0,105340.0,0.32464428]
[1750256863720,0.001,105350.0,105340.0,0.40886174]
[1750256864837,0.001,105350.0,105340.0,0.40886076]
[1750256865050,0.01897928,105370.0,105360.0,0.21829806]
[1750256865278,0.01897928,105370.0,105360.0,0.53401982]
[1750256865938,4.30476636,105360.0,105340.0,0.20592442]
[1750256866160,0.22847495,105350.0,105340.0,0.27070723]
[1750256866380,0.21898297,105350.0,105340.0,0.43438991]
[1750256866668,0.01898306,105350.0,105340.0,0.53063167]
[1750256866902,0.42781057,105350.0,105340.0,0.1898614]
[1750256867138,0.00949334,105330.0,105320.0,0.4369062]
[1750256867370,0.40884735,105340.0,105330.0,0.20886691]
[1750256867598,0.40884735,105340.0,105330.0,0.31158678]
[1750256867816,0.40884735,105340.0,105330.0,0.3210803]
[1750256868034,0.40884735,105340.0,105330.0,0.31460237]
[1750256868240,0.21898549,105340.0,105330.0,0.3305745]
[1750256868453,0.01898549,105340.0,105330.0,0.34006784]
[1750256868677,0.20635471,105350.0,105340.0,0.20884689]
[1750256868894,0.41518195,105350.0,105340.0,0.4093414]
[1750256869124,0.19935428,105340.0,105330.0,0.14560176]
[1750256869325,0.19935428,105340.0,105330.0,0.5121192]
[1750256869536,0.39935428,105340.0,105330.0,0.31572176]
[1750256869750,0.39935428,105340.0,105330.0,0.50560118]
[1750256869967,0.19937321,105330.0,105320.0,0.22818942]
[1750256870185,0.39937321,105330.0,105320.0,0.56368863]
[1750256870412,0.38987942,105330.0,105320.0,0.27754942]
[1750256870630,0.38987942,105330.0,105320.0,0.65655652]
[1750256870849,0.38987942,105330.0,105320.0,0.66605103]
[1750256871079,0.38987942,105330.0,105320.0,0.65655652]
[1750256871300,0.38987942,105330.0,105320.0,0.41808687]
[1750256871515,0.38987942,105330.0,105320.0,0.66605085]
[1750256871968,0.20949316,105330.0,105320.0,0.78428118]
[1750256872179,0.02847993,105330.0,105320.0,0.78428118]
[1750256872395,0.03797363,105330.0,105320.0,0.78428118]
[1750256873061,0.04746742,105330.0,105320.0,0.78428118]
[1750256873499,0.02847993,105330.0,105320.0,0.78428118]
[1750256873715,0.03797363,105330.0,105320.0,0.78428118]
[1750256873932,0.04746742,105330.0,105320.0,0.78428118]
[1750256874145,0.02847993,105330.0,105320.0,0.78428118]
[1750256874418,0.03797363,105330.0,105320.0,0.78428118]
[1750256874856,0.02847993,105330.0,105320.0,0.78428118]
[1750256875314,0.03797354,105330.0,105320.0,0.78428118]
[1750256875538,0.39935374,105340.0,105330.0,0.20886691]
[1750256875768,0.3898614,105340.0,105330.0,0.20886691]
[1750256875982,0.3898614,105340.0,105330.0,0.1993733]
[1750256876195,0.3898614,105340.0,105330.0,0.20886709]
[1750256876634,0.20949207,105350.0,105340.0,0.21833978]
[1750256876854,0.21898387,105350.0,105340.0,0.39791221]
[1750256877060,0.4183194,105350.0,105340.0,0.38841978]
[1750256877276,0.4088276,105350.0,105340.0,0.36943447]
[1750256877496,0.39933553,105350.0,105340.0,0.17008]
[1750256877711,0.39933553,105350.0,105340.0,0.36943428]
[1750256877927,0.40133553,105350.0,105340.0,0.37892707]
[1750256878149,0.21149135,105350.0,105340.0,0.38841977]
[1750256878365,0.21149135,105350.0,105340.0,0.49415396]
[1750256878585,0.01149144,105350.0,105340.0,0.49415396]
[1750256878830,0.01249135,105350.0,105340.0,0.49415396]
[1750256879269,0.01249135,105350.0,105340.0,0.50064792]
[1750256879521,0.003,105350.0,105340.0,0.50064792]
[1750256880411,0.003,105350.0,105340.0,0.56244792]
[1750256880640,0.003,105350.0,105340.0,0.39236792]
[1750256880870,0.003,105350.0,105340.0,0.61152792]
[1750256881551,0.003,105350.0,105340.0,0.33056792]
[1750256881775,0.003,105350.0,105340.0,0.54019522]
[1750256882697,0.2213185,105350.0,105340.0,0.05561396]
[1750256882923,4.35896806,105350.0,105340.0,0.24547536]
[1750256883149,4.35896806,105350.0,105340.0,0.21912]
[1750256883150,4.39096806,105350.0,105340.0,0.21912]
[1750256883377,4.41368248,105350.0,105340.0,0.04912]
[1750256883603,0.02847838,105340.0,105330.0,0.44697458]
[1750256883819,0.23520577,105350.0,105340.0,0.2183395]
[1750256884047,0.24096666,105350.0,105340.0,0.21535258]
[1750256884262,0.43081084,105350.0,105340.0,0.20585988]
[1750256884479,0.22198333,105350.0,105340.0,0.22484528]
[1750256884697,0.22198333,105350.0,105340.0,0.39480528]
[1750256884698,0.46040985,105350.0,105340.0,0.39480528]
[1750256884908,0.44142742,105350.0,105340.0,0.37581988]
[1750256885120,0.44142742,105350.0,105340.0,0.38531267]
[1750256885334,0.24009171,105350.0,105340.0,0.2343378]
[1750256885555,0.02847234,105360.0,105350.0,0.21831877]
[1750256885797,0.23796324,105360.0,105350.0,0.32106604]
[1750256886011,0.22847216,105360.0,105350.0,0.32106604]
[1750256886229,0.20949063,105360.0,105350.0,0.32106604]
[1750256886458,0.20949009,105370.0,105360.0,0.20880725]
[1750256886675,0.22776779,105370.0,105360.0,0.37578035]
[1750256886893,0.22776779,105370.0,105360.0,0.38527125]
[1750256887149,0.21897937,105370.0,105360.0,0.4042526]
[1750256887371,0.43725716,105370.0,105360.0,0.39476206]
[1750256887594,0.23795955,105370.0,105360.0,0.40425269]
[1750256888023,0.24744982,105370.0,105360.0,0.40425269]
[1750256888243,0.43725797,105370.0,105360.0,0.40425269]
[1750256888696,0.21897937,105370.0,105360.0,0.40425269]
[1750256888914,0.24395946,105370.0,105360.0,0.40425269]
[1750256889128,0.24325707,105370.0,105360.0,0.39476548]
[1750256889352,0.21,105370.0,105360.0,0.40425611]
[1750256889579,0.01,105370.0,105360.0,0.50049787]
[1750256890285,0.01,105370.0,105360.0,0.58003872]
[1750256891875,0.01,105370.0,105360.0,0.58002843]
[1750256892397,0.006,105370.0,105360.0,0.58002843]
[1750256892633,0.008,105370.0,105360.0,0.58002843]
[1750256893113,0.002,105370.0,105360.0,0.58002843]
[1750256893369,0.002,105370.0,105360.0,0.41006843]
[1750256893619,0.002,105370.0,105360.0,0.77752758]
[1750256893849,0.27038573,105380.0,105370.0,0.21827752]
[1750256894078,0.27038573,105380.0,105370.0,0.23426438]
[1750256894319,0.27038564,105380.0,105370.0,0.24375411]
[1750256894548,0.06161766,105380.0,105370.0,0.41358928]
[1750256894757,0.05212856,105380.0,105370.0,0.41358928]
[1750256895221,0.24363973,105380.0,105370.0,0.41358928]
[1750256895448,0.001,105380.0,105370.0,0.50983104]
[1750256895917,0.003,105380.0,105370.0,0.50983104]
[1750256896818,0.01248874,105380.0,105370.0,0.30203158]
[1750256897048,0.26394582,105380.0,105370.0,0.42470991]
[1750256897285,0.25445708,105380.0,105370.0,0.18980734]
[1750256897581,0.02846964,105370.0,105360.0,0.48596743]
[1750256897810,0.26166955,105370.0,105360.0,0.67174741]
[1750256898038,0.45147806,105370.0,105360.0,0.47347453]
[1750256898274,0.45147806,105370.0,105360.0,0.59715662]
[1750256898275,0.48277806,105370.0,105360.0,0.59715662]
[1750256898506,0.48277806,105370.0,105360.0,0.37860779]
[1750256898777,4.314941,105370.0,105360.0,0.39758932]
[1750256898998,4.14340803,105380.0,105370.0,0.21827725]
[1750256899231,0.01897775,105380.0,105370.0,0.20878743]
[1750256899457,0.21897775,105380.0,105370.0,0.21827716]
[1750256899691,0.20948874,105380.0,105370.0,0.21827716]
[1750256899928,0.22846667,105380.0,105370.0,0.21827716]
[1750256900175,0.20948874,105380.0,105370.0,0.21827716]
[1750256900415,4.314941,105380.0,105370.0,0.32100747]
[1750256900669,0.27044508,105390.0,105380.0,0.21825654]
[1750256900892,0.45072847,105390.0,105380.0,0.41815861]
[1750256901121,0.45072847,105390.0,105380.0,0.4276478]
[1750256901367,0.44124027,105390.0,105380.0,0.40866933]
[1750256901591,0.43175198,105390.0,105380.0,0.21888]
[1750256901816,0.26215198,105390.0,105380.0,0.41815879]
[1750256902044,0.19927843,105380.0,105370.0,0.2860491]
[1750256902279,0.39929885,105370.0,105360.0,0.23894536]
[1750256902508,0.42090885,105370.0,105360.0,0.2253352]
[1750256902781,0.42090885,105370.0,105360.0,0.0064961]
[1750256903004,0.20949171,105350.0,105340.0,0.2644653]
[1750256903229,0.23796693,105350.0,105340.0,0.25506202]
[1750256903457,0.41831886,105350.0,105340.0,0.24556905]
[1750256903676,4.32376824,105350.0,105340.0,0.25506212]
[1750256903900,4.32376824,105350.0,105340.0,0.26455509]
[1750256904370,4.37817644,105350.0,105340.0,0.23907082]
[1750256904856,4.37817644,105350.0,105340.0,0.04920942]
[1750256905844,4.37817644,105350.0,105340.0,0.23907082]
[1750256906061,4.36868437,105350.0,105340.0,0.23907082]
[1750256906267,4.36868437,105350.0,105340.0,8.942e-05]
[1750256906947,4.36868437,105350.0,105340.0,1.18995082]
[1750256907384,4.36868437,105350.0,105340.0,1.00008942]
[1750256908734,0.04099018,105370.0,105340.0,1.40041559]
[1750256908967,0.21897973,105370.0,105360.0,0.21829815]
[1750256909212,0.21897748,105380.0,105370.0,0.20878761]
[1750256909434,0.2379555,105380.0,105370.0,0.2247752]
[1750256909647,0.2284664,105380.0,105370.0,0.3944552]
[1750256909878,0.24744478,105380.0,105370.0,0.3944552]
[1750256910558,0.2284664,105380.0,105370.0,0.49069696]
[1750256910771,0.23795541,105380.0,105370.0,0.49069183]
[1750256910995,0.202,105380.0,105370.0,0.49069183]
[1750256911217,0.002,105380.0,105370.0,0.52279183]
[1750256911434,0.002,105380.0,105370.0,0.55489183]
[1750256911658,0.004,105380.0,105370.0,0.55489183]
[1750256912163,0.002,105380.0,105370.0,1.21372488]
[1750256913044,0.028511,105400.0,105370.0,1.18525488]
[1750256913272,0.03799839,105400.0,105390.0,0.21823592]
[1750256913489,0.03799839,105400.0,105390.0,0.53945041]
[1750256913707,0.20005,105400.0,105390.0,0.53945041]
[1750256913924,5e-05,105400.0,105390.0,0.53945041]
[1750256914133,0.00953694,105400.0,105390.0,0.53945041]
[1750256914351,0.00953685,105400.0,105390.0,0.53945041]
[1750256914578,0.00052041,105400.0,105390.0,0.53945041]
[1750256914810,0.01400735,105400.0,105390.0,0.53945041]
[1750256915250,0.02649474,105400.0,105390.0,0.31148248]
[1750256915465,0.23598213,105400.0,105390.0,0.43667619]
[1750256915690,0.22349474,105400.0,105390.0,0.44616412]
[1750256915906,0.01400744,105400.0,105390.0,0.44616412]
[1750256916121,0.00752041,105400.0,105390.0,0.45265867]
[1750256916336,0.00752041,105400.0,105390.0,0.54890043]
[1750256916560,0.01700744,105400.0,105390.0,0.54890043]
[1750256916790,0.02649465,105400.0,105390.0,0.52992448]
[1750256917023,0.46799905,105400.0,105390.0,0.52342993]
[1750256917249,0.26875807,105400.0,105390.0,0.53291831]
[1750256917483,0.23598204,105400.0,105390.0,0.55189426]
[1750256917703,0.24546934,105400.0,105390.0,0.23421981]
[1750256917925,0.24471023,105400.0,105390.0,0.42714826]
[1750256918163,0.22846424,105390.0,105380.0,0.19926264]
[1750256918462,0.44873619,105390.0,105380.0,0.23865327]
[1750256918681,0.21897811,105380.0,105370.0,0.4762177]
[1750256918906,0.40876744,105380.0,105370.0,0.45589036]
[1750256919130,0.43067861,105380.0,105370.0,0.04888]
[1750256919356,4.31423852,105370.0,105360.0,0.24751022]
[1750256919616,0.39929752,105370.0,105360.0,0.44987659]
[1750256919850,0.39929752,105370.0,105360.0,0.45936767]
[1750256920093,0.39929752,105370.0,105360.0,0.45936776]
[1750256920303,0.39929752,105370.0,105360.0,0.46885884]
[1750256920755,0.21897811,105380.0,105370.0,0.21826086]
[1750256920975,0.21897811,105380.0,105370.0,0.31450262]
[1750256920976,0.01897766,105380.0,105370.0,0.31450262]
[1750256921199,0.40874967,105390.0,105380.0,0.2182569]
[1750256921436,0.21823655,105390.0,105380.0,0.39722609]
[1750256921672,0.20874835,105390.0,105380.0,0.16948]
[1750256922125,0.20874835,105390.0,105380.0,0.36875861]
[1750256922350,0.18978933,105380.0,105370.0,0.18979113]
[1750256922560,0.38978933,105380.0,105370.0,0.4176414]
[1750256922771,0.38978933,105380.0,105370.0,0.21832]
[1750256922978,4.30473033,105380.0,105370.0,0.21832]
[1750256923662,4.30473033,105380.0,105370.0,0.40812734]
[1750256923902,0.19929752,105370.0,105360.0,0.23151659]
[1750256924135,4.31423852,105370.0,105360.0,0.08108]
[1750256924350,4.34483852,105370.0,105360.0,0.0322]
[1750256924563,4.37483852,105370.0,105360.0,0.0322]
[1750256925279,4.37483852,105370.0,105360.0,0.0332]
[1750256925707,4.37483852,105370.0,105360.0,0.0322]
[1750256926350,4.37483852,105370.0,105360.0,0.0332]
[1750256927030,0.20878761,105370.0,105360.0,0.23251644]
[1750256927293,0.40878761,105370.0,105360.0,0.34774009]
[1750256927721,0.40878761,105370.0,105360.0,0.33824919]
[1750256927951,0.41827797,105370.0,105360.0,0.3572309]
[1750256928175,4.32372888,105370.0,105360.0,0.0332]
[1750256928391,4.35522888,105370.0,105360.0,0.0332]
[1750256929094,4.32372888,105370.0,105360.0,0.24200761]
[1750256929289,0.21897955,105370.0,105360.0,0.25149851]
[1750256929496,0.42776734,105370.0,105360.0,0.24200761]
[1750256929701,0.42776734,105370.0,105360.0,0.2420077]
[1750256929923,0.4182777,105370.0,105360.0,0.25149887]
[1750256930136,0.4182777,105370.0,105360.0,0.23251662]
[1750256930350,0.4182777,105370.0,105360.0,0.23251653]
[1750256930780,0.22847036,105370.0,105360.0,0.2514986]
[1750256930987,0.22846964,105370.0,105360.0,0.2609895]
[1750256931239,0.22846964,105370.0,105360.0,0.27048031]
[1750256931467,0.21897955,105370.0,105360.0,0.26098896]
[1750256931918,0.22846937,105370.0,105360.0,0.26098896]
[1750256932135,0.24744982,105370.0,105360.0,0.25149833]
[1750256932351,0.23795946,105370.0,105360.0,0.27047986]
[1750256932582,0.42776725,105370.0,105360.0,0.24200761]
[1750256932794,0.4087877,105370.0,105360.0,0.22302536]
[1750256933039,0.4087877,105370.0,105360.0,0.23251635]
[1750256933254,0.4087877,105370.0,105360.0,0.25149851]
[1750256933475,0.20948955,105370.0,105360.0,0.27047995]
[1750256933694,0.2284691,105370.0,105360.0,0.27699036]
[1750256933905,0.23795919,105370.0,105360.0,0.27047995]
[1750256934110,0.22846964,105370.0,105360.0,0.42081869]
[1750256934331,0.23795982,105370.0,105360.0,0.43030932]
[1750256934545,0.24745009,105370.0,105360.0,0.43030932]
[1750256934958,0.23795982,105370.0,105360.0,0.43030932]
[1750256935172,0.21897955,105370.0,105360.0,0.43030932]
[1750256935384,4.314941,105370.0,105360.0,0.53306298]
[1750256935607,4.12443064,105370.0,105360.0,0.53306298]
[1750256935817,0.21897928,105370.0,105360.0,0.49137109]
[1750256936028,0.42776671,105370.0,105360.0,0.48188109]
[1750256936243,0.22846919,105370.0,105360.0,0.50086244]
[1750256936462,0.2,105370.0,105360.0,0.50086244]
[1750256936674,0.20948955,105370.0,105360.0,0.50086244]
[1750256936905,0.2284691,105370.0,105360.0,0.50086244]
[1750256937119,0.20948955,105370.0,105360.0,0.50086244]
[1750256937347,0.25444002,105400.0,105380.0,0.2182569]
[1750256937598,0.0615477,105400.0,105390.0,0.37802781]
[1750256938022,0.07103518,105400.0,105390.0,0.40351702]
[1750256938233,0.07103509,105400.0,105390.0,0.40351702]
[1750256938444,0.0615477,105400.0,105390.0,0.40351702]
[1750256938664,0.07603518,105400.0,105390.0,0.40351702]
[1750256938903,0.07603509,105400.0,105390.0,0.39402909]
[1750256939122,0.07103509,105400.0,105390.0,0.38454107]
[1750256939336,0.08052266,105400.0,105390.0,0.1962844]
[1750256939554,0.20874799,105390.0,105380.0,0.04888]
[1750256939768,0.19927879,105380.0,105370.0,0.18979115]
[1750256939983,0.21897748,105380.0,105370.0,0.39407254]
[1750256940240,3.943948,105380.0,105370.0,0.39407254]
[1750256940487,3.943948,105380.0,105370.0,0.40356236]
[1750256940760,0.01897775,105380.0,105370.0,0.37509281]
[1750256941022,4.17169427,105380.0,105370.0,0.20581281]
[1750256941253,3.96292611,105380.0,105370.0,0.3845429]
[1750256941460,3.98190485,105380.0,105370.0,0.3845429]
[1750256941708,3.98190485,105380.0,105370.0,0.39403308]
[1750256941927,4.16420517,105380.0,105370.0,0.19632254]
[1750256942143,4.16420517,105380.0,105370.0,0.36556254]
[1750256942361,4.16420517,105380.0,105370.0,0.20581272]
[1750256942599,4.16520517,105380.0,105370.0,0.38454299]
[1750256942835,4.16520517,105380.0,105370.0,0.3750529]
[1750256943070,4.16520517,105380.0,105370.0,0.36556254]
[1750256943330,0.20878761,105370.0,105360.0,0.18982536]
[1750256943574,0.2379636,105360.0,105350.0,0.38750319]
[1750256943809,0.2379636,105360.0,105350.0,0.38453757]
[1750256944043,0.42778896,105360.0,105350.0,0.38453757]
[1750256944254,0.42778896,105360.0,105350.0,0.17572618]
[1750256944255,5.26829842,105360.0,105350.0,0.17572618]
[1750256944710,5.26829842,105360.0,105350.0,0.00652618]
[1750256944919,5.24931662,105360.0,105350.0,0.17572618]
[1750256945125,5.23982536,105360.0,105350.0,0.36556955]
[1750256945354,5.24931662,105360.0,105350.0,0.17572618]
[1750256945569,5.24931662,105360.0,105350.0,0.17672618]
[1750256945924,5.24931662,105360.0,105350.0,0.00752987]
[1750256946134,5.24931662,105360.0,105350.0,0.001]
[1750256946135,5.31301662,105360.0,105350.0,0.001]
[1750256946754,5.31301662,105360.0,105350.0,0.002]
[1750256947273,5.28133535,105350.0,105340.0,1.1692]
[1750256947503,5.28133535,105350.0,105340.0,1.0066195]
[1750256947737,5.24933535,105350.0,105340.0,1.0066195]
[1750256948182,5.28003535,105350.0,105340.0,1.0066195]
[1750256949212,5.05949162,105350.0,105340.0,1.23445207]
[1750256949383,0.01898297,105350.0,105340.0,1.23445216]
[1750256949590,0.00949135,105350.0,105340.0,1.32119995]
[1750256949798,0.01898297,105350.0,105340.0,1.32119995]
[1750256950274,0.02847468,105350.0,105340.0,1.53900058]
[1750256950480,0.21898189,105360.0,105350.0,0.19933544]
[1750256950700,0.21898135,105360.0,105350.0,0.23433975]
[1750256950900,0.22847243,105360.0,105350.0,0.23433975]
[1750256951124,0.21898135,105360.0,105350.0,0.23433984]
[1750256951444,5.25,105370.0,105350.0,0.36470512]
[1750256951658,5.12045113,105400.0,105390.0,0.19925979]
[1750256951873,0.02846451,105390.0,105380.0,0.41706254]
[1750256952073,0.41823583,105390.0,105380.0,0.43307399]
[1750256952285,0.2,105390.0,105380.0,0.44256282]
[1750256952496,0.01897586,105390.0,105380.0,0.53880458]
[1750256952712,0.21897586,105390.0,105380.0,0.53880458]
[1750256952922,0.21906514,105390.0,105380.0,0.53880458]
[1750256953127,0.20008928,105390.0,105380.0,0.53880458]
[1750256953332,0.21906541,105390.0,105380.0,0.53880458]
[1750256953541,0.22006541,105390.0,105380.0,0.53880458]
[1750256953751,0.21057721,105390.0,105380.0,0.53880458]
[1750256953959,0.21657721,105390.0,105380.0,0.53880065]
[1750256954187,0.21657712,105390.0,105380.0,0.53880065]
[1750256954407,0.20108928,105390.0,105380.0,0.53880065]
[1750256954825,0.02106523,105390.0,105380.0,0.53880065]
[1750256955034,0.24004199,105390.0,105380.0,0.53880074]
[1750256955239,0.01157712,105390.0,105380.0,0.54828957]
[1750256955863,0.24953028,105390.0,105380.0,0.44251925]
[1750256956066,0.24004163,105390.0,105380.0,0.45200808]
[1750256956270,0.23055325,105390.0,105380.0,0.45200808]
[1750256956481,0.0115773,105390.0,105380.0,0.45200808]
[1750256956936,0.02106505,105390.0,105380.0,0.45200808]
[1750256957210,0.03055325,105390.0,105380.0,0.45200808]
[1750256957419,0.01157703,105390.0,105380.0,0.45200808]
[1750256957873,0.22106496,105390.0,105380.0,0.45200808]
[1750256958096,0.23055298,105390.0,105380.0,0.45200808]
[1750256958319,0.24004109,105390.0,105380.0,0.45200808]
[1750256958547,0.24004154,105390.0,105380.0,0.461497]
[1750256958770,0.23055334,105390.0,105380.0,0.461497]
[1750256958991,0.04004163,105390.0,105380.0,0.461497]
[1750256959211,0.02106523,105390.0,105380.0,0.461497]
[1750256959431,0.22981322,105390.0,105380.0,0.43303024]
[1750256959649,0.22032529,105390.0,105380.0,0.44251801]
[1750256959886,0.41083727,105390.0,105380.0,0.42355588]
[1750256960098,0.41083727,105390.0,105380.0,0.43304525]
[1750256960314,0.19929689,105370.0,105360.0,0.20875537]
[1750256960533,0.03795964,105370.0,105360.0,0.53868811]
[1750256960749,0.21827743,105370.0,105360.0,0.205785]
[1750256960957,0.41827743,105370.0,105360.0,0.254425]
[1750256961171,0.39929752,105370.0,105360.0,0.05516035]
[1750256961416,0.39929752,105370.0,105360.0,0.00652035]
[1750256961417,5.24929752,105370.0,105360.0,0.00652035]
[1750256961621,5.24929752,105370.0,105360.0,0.0065231]
[1750256961844,5.24929752,105370.0,105360.0,0.002]
[1750256962053,5.24929752,105370.0,105360.0,0.005]
[1750256962262,0.01898162,105360.0,105350.0,0.43599841]
[1750256962480,0.41829878,105360.0,105350.0,0.42650742]
[1750256962696,0.21831868,105350.0,105340.0,1.20884662]
[1750256962915,0.01898387,105350.0,105340.0,1.44551211]
[1750256963142,0.00949189,105350.0,105340.0,1.44551211]
[1750256963329,0.00949135,105350.0,105340.0,1.44551148]
[1750256963585,0.01898324,105350.0,105340.0,1.44551148]
[1750256963816,0.02847522,105350.0,105340.0,1.44551148]
[1750256964033,0.02847477,105350.0,105340.0,1.4456009]
[1750256964254,0.03796675,105350.0,105340.0,1.4456009]
[1750256964522,0.02847477,105350.0,105340.0,1.4476009]
[1750256964735,0.03796666,105350.0,105340.0,1.4476009]
[1750256965160,0.02847477,105350.0,105340.0,1.4476009]
[1750256965371,0.03796675,105350.0,105340.0,1.4476009]
[1750256965593,0.22781093,105350.0,105340.0,1.43257613]
[1750256965776,0.22781093,105350.0,105340.0,1.25408379]
[1750256966023,0.21831931,105350.0,105340.0,1.43257667]
[1750256966252,0.20882751,105350.0,105340.0,1.00608942]
[1750256966472,5.25882751,105350.0,105340.0,1.17508942]
[1750256966681,5.32432751,105350.0,105340.0,1.00608942]
[1750256966908,5.32432751,105350.0,105340.0,1.00008942]
[1750256967128,5.32432751,105350.0,105340.0,1.00308942]
[1750256967565,5.32432751,105350.0,105340.0,1.00208942]
[1750256967987,5.32532751,105350.0,105340.0,1.00208942]
[1750256968422,5.32532751,105350.0,105340.0,1.00008942]
[1750256968631,5.32632751,105350.0,105340.0,1.00008942]
[1750256969063,5.35440424,105350.0,105340.0,1.00008942]
[1750256970170,5.450646,105350.0,105340.0,1.00008942]
[1750256971564,5.26080263,105350.0,105340.0,1.00008942]
[1750256973723,5.19530263,105350.0,105340.0,1.00958239]